[Event "Titled Tuesday Blitz September 13 Late 2022"]
[White "Przybylski, Wojciech"]
[Black "Melkumyan, Hrant"]
[WhiteFideId "1117599"]
[BlackFideId "13302485"]
[WhiteElo "2133"]
[BlackElo "2604"]
[Result "0-1"]
[Round "01"]
[TimeControl "180+1"]
[Date "2022.09.13"]
[WhiteClock "0:00:04"]
[BlackClock "0:00:37"]

1. e4 {[%clk 0:02:59]}  c6 {[%clk 0:03:00]} 2. d4 {[%clk 0:02:56]}  d5 {[%clk 0:03:00]} 3. e5 {[%clk 0:02:56]}  Bf5 {[%clk 0:02:59]} 4. Nf3 {[%clk 0:02:54]}  e6 {[%clk 0:02:59]} 5. Be2 {[%clk 0:02:53]}  Ne7 {[%clk 0:03:00]} 6. O-O {[%clk 0:02:53]}  c5 {[%clk 0:03:00]} 7. c3 {[%clk 0:02:53]}  Nec6 {[%clk 0:02:58]} 8. Be3 {[%clk 0:02:51]}  Nd7 {[%clk 0:02:55]} 9. a3 {[%clk 0:02:50]}  Be7 {[%clk 0:02:54]} 10. Nbd2 {[%clk 0:02:50]}  O-O {[%clk 0:02:52]} 11. Re1 {[%clk 0:02:48]}  Bg6 {[%clk 0:02:48]} 12. b4 {[%clk 0:02:42]}  cxd4 {[%clk 0:02:42]} 13. cxd4 {[%clk 0:02:41]}  Nb6 {[%clk 0:02:31]} 14. Qb3 {[%clk 0:02:36]}  Qd7 {[%clk 0:02:27]} 15. Rec1 {[%clk 0:02:35]}  Rfc8 {[%clk 0:02:27]} 16. Ne1 {[%clk 0:02:30]}  a6 {[%clk 0:02:01]} 17. f4 {[%clk 0:02:25]}  Na7 {[%clk 0:01:58]} 18. Nd3 {[%clk 0:01:57]}  Bxd3 {[%clk 0:01:57]} 19. Bxd3 {[%clk 0:01:57]}  Rxc1+ {[%clk 0:01:54]} 20. Rxc1 {[%clk 0:01:56]}  Rc8 {[%clk 0:01:55]} 21. Rc2 {[%clk 0:01:48]}  g6 {[%clk 0:01:54]} 22. g4 {[%clk 0:01:45]}  Rxc2 {[%clk 0:01:27]} 23. Qxc2 {[%clk 0:01:42]}  Nb5 {[%clk 0:01:27]} 24. Nb1 {[%clk 0:01:14]}  Nc4 {[%clk 0:01:15]} 25. Bxc4 {[%clk 0:01:10]}  dxc4 {[%clk 0:01:16]} 26. Qxc4 {[%clk 0:01:10]}  Nc7 {[%clk 0:01:17]} 27. Nc3 {[%clk 0:01:08]}  b5 {[%clk 0:01:16]} 28. Qd3 {[%clk 0:01:05]}  Qc6 {[%clk 0:01:16]} 29. f5 {[%clk 0:00:47]}  Qf3 {[%clk 0:01:07]} 30. Qe4 {[%clk 0:00:41]}  Qxe4 {[%clk 0:01:02]} 31. Nxe4 {[%clk 0:00:42]}  Nd5 {[%clk 0:01:03]} 32. f6 {[%clk 0:00:21]}  Bxb4 {[%clk 0:00:57]} 33. axb4 {[%clk 0:00:22]}  Nxe3 {[%clk 0:00:58]} 34. Nc5 {[%clk 0:00:22]}  Nc2 {[%clk 0:00:58]} 35. Nxa6 {[%clk 0:00:21]}  Nxd4 {[%clk 0:00:58]} 36. Nc7 {[%clk 0:00:20]}  Nf3+ {[%clk 0:00:52]} 37. Kg2 {[%clk 0:00:19]}  Nxe5 {[%clk 0:00:53]} 38. Kg3 {[%clk 0:00:12]}  Nc6 {[%clk 0:00:50]} 39. Nxb5 {[%clk 0:00:11]}  Nxb4 {[%clk 0:00:50]} 40. Kf4 {[%clk 0:00:08]}  Nd5+ {[%clk 0:00:46]} 41. Kg5 {[%clk 0:00:07]}  h6+ {[%clk 0:00:46]} 42. Kxh6 {[%clk 0:00:07]}  Nxf6 {[%clk 0:00:47]} 43. Kg5 {[%clk 0:00:07]}  Kg7 {[%clk 0:00:47]} 44. Nd6 {[%clk 0:00:07]}  e5 {[%clk 0:00:44]} 45. h3 {[%clk 0:00:06]}  Nh7+ {[%clk 0:00:44]} 46. Kh4 {[%clk 0:00:06]}  Kf6 {[%clk 0:00:44]} 47. Kg3 {[%clk 0:00:06]}  Ke6 {[%clk 0:00:44]} 48. Ne4 {[%clk 0:00:05]}  f5 {[%clk 0:00:43]} 49. Nc5+ {[%clk 0:00:05]}  Kd6 {[%clk 0:00:42]} 50. Nb7+ {[%clk 0:00:05]}  Ke7 {[%clk 0:00:42]} 51. h4 {[%clk 0:00:04]}  Nf6 {[%clk 0:00:43]} 52. gxf5 {[%clk 0:00:04]}  gxf5 {[%clk 0:00:42]} 53. Nc5 {[%clk 0:00:04]}  Kd6 {[%clk 0:00:41]} 54. Nb7+ {[%clk 0:00:05]}  Kd5 {[%clk 0:00:42]} 55. Nd8 {[%clk 0:00:05]}  Ke4 {[%clk 0:00:39]} 56. Ne6 {[%clk 0:00:04]}  f4+ {[%clk 0:00:39]} 57. Kg2 {[%clk 0:00:05]}  Kf5 {[%clk 0:00:40]} 58. Nc5 {[%clk 0:00:04]}  e4 {[%clk 0:00:39]} 59. h5 {[%clk 0:00:04]}  Nxh5 {[%clk 0:00:39]} 60. Nb3 {[%clk 0:00:04]}  Nf6 {[%clk 0:00:38]} 61. Nd2 {[%clk 0:00:05]}  Kg4 {[%clk 0:00:38]} 62. Nc4 {[%clk 0:00:04]}  f3+ {[%clk 0:00:36]} 63. Kf2 {[%clk 0:00:04]}  Kf4 {[%clk 0:00:37]} 64. Ne3 {[%clk 0:00:04]}  Ng4+ {[%clk 0:00:37]} 0-1


[Site "https://www.chess.com"]

[Event "Titled Tuesday Blitz September 13 Late 2022"]
[White "Runets, Ivan"]
[Black "Milikow, Yoav"]
[WhiteFideId "13511564"]
[BlackFideId "2822237"]
[WhiteElo "1962"]
[BlackElo "2341"]
[Result "1-0"]
[Round "01"]
[TimeControl "180+1"]
[Date "2022.09.13"]
[WhiteClock "0:00:19"]
[BlackClock "0:00:19"]

1. d4 {[%clk 0:02:21]}  d5 {[%clk 0:02:57]} 2. c4 {[%clk 0:02:18]}  e6 {[%clk 0:02:57]} 3. Nc3 {[%clk 0:02:18]}  Nf6 {[%clk 0:02:57]} 4. Nf3 {[%clk 0:02:18]}  c5 {[%clk 0:02:54]} 5. cxd5 {[%clk 0:02:15]}  cxd4 {[%clk 0:02:54]} 6. Qxd4 {[%clk 0:02:14]}  exd5 {[%clk 0:02:54]} 7. Bg5 {[%clk 0:02:13]}  Be7 {[%clk 0:02:49]} 8. e3 {[%clk 0:02:12]}  Nc6 {[%clk 0:02:47]} 9. Bb5 {[%clk 0:02:12]}  O-O {[%clk 0:02:47]} 10. Qa4 {[%clk 0:02:01]}  Be6 {[%clk 0:02:43]} 11. O-O {[%clk 0:01:59]}  Qb6 {[%clk 0:02:37]} 12. Rfd1 {[%clk 0:01:28]}  Rfd8 {[%clk 0:02:34]} 13. Nd4 {[%clk 0:01:25]}  Nxd4 {[%clk 0:02:30]} 14. Qxd4 {[%clk 0:01:24]}  h6 {[%clk 0:02:16]} 15. Qxb6 {[%clk 0:01:23]}  axb6 {[%clk 0:02:17]} 16. Bf4 {[%clk 0:01:22]}  Rac8 {[%clk 0:02:16]} 17. Rac1 {[%clk 0:01:18]}  Rc5 {[%clk 0:01:49]} 18. Be5 {[%clk 0:01:16]}  Ne4 {[%clk 0:01:39]} 19. Bd4 {[%clk 0:00:57]}  Rcc8 {[%clk 0:01:04]} 20. Bxb6 {[%clk 0:00:57]}  Rd6 {[%clk 0:00:56]} 21. Bd4 {[%clk 0:00:57]}  Ra8 {[%clk 0:00:51]} 22. a3 {[%clk 0:00:54]}  Ra5 {[%clk 0:00:50]} 23. Nxe4 {[%clk 0:00:51]}  dxe4 {[%clk 0:00:48]} 24. Bc4 {[%clk 0:00:50]}  Bg4 {[%clk 0:00:40]} 25. Rd2 {[%clk 0:00:47]}  Ra8 {[%clk 0:00:39]} 26. h3 {[%clk 0:00:45]}  Bh5 {[%clk 0:00:38]} 27. g4 {[%clk 0:00:44]}  Bg6 {[%clk 0:00:39]} 28. Rdc2 {[%clk 0:00:43]}  Rdd8 {[%clk 0:00:36]} 29. Bb3 {[%clk 0:00:39]}  h5 {[%clk 0:00:36]} 30. Rc7 {[%clk 0:00:37]}  Bg5 {[%clk 0:00:36]} 31. R1c5 {[%clk 0:00:29]}  Bf6 {[%clk 0:00:23]} 32. Bxf6 {[%clk 0:00:27]}  gxf6 {[%clk 0:00:24]} 33. gxh5 {[%clk 0:00:28]}  Bh7 {[%clk 0:00:25]} 34. Rxf7 {[%clk 0:00:26]}  Kh8 {[%clk 0:00:26]} 35. Rcc7 {[%clk 0:00:26]}  Bg8 {[%clk 0:00:26]} 36. Rg7 {[%clk 0:00:19]}  Bxb3 {[%clk 0:00:24]} 37. Rh7+ {[%clk 0:00:19]}  Kg8 {[%clk 0:00:24]} 38. Rcg7+ {[%clk 0:00:20]}  Kf8 {[%clk 0:00:24]} 39. h6 {[%clk 0:00:21]}  Bf7 {[%clk 0:00:19]} 40. Rxf7+ {[%clk 0:00:19]} 1-0


[Site "https://www.chess.com"]

[Event "Titled Tuesday Blitz September 13 Late 2022"]
[White "Sarana, Alexey"]
[Black "Gheorghiu, Calin"]
[WhiteFideId "24133795"]
[BlackFideId "1200305"]
[WhiteElo "2689"]
[BlackElo "2168"]
[Result "1-0"]
[Round "01"]
[TimeControl "180+1"]
[Date "2022.09.13"]
[WhiteClock "0:01:37"]
[BlackClock "0:00:06"]

1. c4 {[%clk 0:03:00]}  e5 {[%clk 0:02:56]} 2. g3 {[%clk 0:02:58]}  Nc6 {[%clk 0:02:54]} 3. Bg2 {[%clk 0:02:58]}  g6 {[%clk 0:02:55]} 4. Nc3 {[%clk 0:02:58]}  Bg7 {[%clk 0:02:55]} 5. Nf3 {[%clk 0:02:57]}  d6 {[%clk 0:02:51]} 6. O-O {[%clk 0:02:57]}  Nf6 {[%clk 0:02:40]} 7. d3 {[%clk 0:02:57]}  O-O {[%clk 0:02:40]} 8. Rb1 {[%clk 0:02:57]}  h6 {[%clk 0:02:34]} 9. b4 {[%clk 0:02:56]}  Be6 {[%clk 0:02:34]} 10. b5 {[%clk 0:02:55]}  Ne7 {[%clk 0:02:34]} 11. a4 {[%clk 0:02:55]}  Qd7 {[%clk 0:02:33]} 12. Re1 {[%clk 0:02:53]}  Bh3 {[%clk 0:02:33]} 13. Bh1 {[%clk 0:02:53]}  Qf5 {[%clk 0:02:21]} 14. Nh4 {[%clk 0:02:34]}  Qh5 {[%clk 0:02:10]} 15. Bxb7 {[%clk 0:02:32]}  g5 {[%clk 0:01:40]} 16. Bf3 {[%clk 0:02:32]}  Bg4 {[%clk 0:01:32]} 17. Ng2 {[%clk 0:02:32]}  Bxf3 {[%clk 0:01:29]} 18. exf3 {[%clk 0:02:33]}  g4 {[%clk 0:01:27]} 19. f4 {[%clk 0:02:22]}  Ng6 {[%clk 0:01:21]} 20. Ne4 {[%clk 0:02:06]}  Rfe8 {[%clk 0:01:09]} 21. Nxf6+ {[%clk 0:02:01]}  Bxf6 {[%clk 0:01:09]} 22. Re4 {[%clk 0:02:01]}  exf4 {[%clk 0:00:58]} 23. Nxf4 {[%clk 0:02:02]}  Nxf4 {[%clk 0:00:54]} 24. Bxf4 {[%clk 0:01:46]}  Rxe4 {[%clk 0:00:40]} 25. dxe4 {[%clk 0:01:47]}  Re8 {[%clk 0:00:40]} 26. Qd3 {[%clk 0:01:44]}  Qc5 {[%clk 0:00:36]} 27. Be3 {[%clk 0:01:42]}  Qe5 {[%clk 0:00:32]} 28. Bxa7 {[%clk 0:01:32]}  Qxe4 {[%clk 0:00:24]} 29. Qxe4 {[%clk 0:01:32]}  Rxe4 {[%clk 0:00:25]} 30. a5 {[%clk 0:01:32]}  Rxc4 {[%clk 0:00:20]} 31. Be3 {[%clk 0:01:32]}  d5 {[%clk 0:00:18]} 32. b6 {[%clk 0:01:32]}  cxb6 {[%clk 0:00:19]} 33. axb6 {[%clk 0:01:33]}  Be5 {[%clk 0:00:12]} 34. b7 {[%clk 0:01:33]}  Bb8 {[%clk 0:00:09]} 35. Bf4 {[%clk 0:01:32]}  Rxf4 {[%clk 0:00:06]} 36. gxf4 {[%clk 0:01:33]}  Kg7 {[%clk 0:00:06]} 37. Rc1 {[%clk 0:01:33]}  Bxf4 {[%clk 0:00:05]} 38. Rc8 {[%clk 0:01:34]}  f5 {[%clk 0:00:05]} 39. b8=Q {[%clk 0:01:35]}  Bxb8 {[%clk 0:00:05]} 40. Rxb8 {[%clk 0:01:36]}  Kf6 {[%clk 0:00:06]} 41. Rb6+ {[%clk 0:01:36]}  Kg5 {[%clk 0:00:06]} 42. Rd6 {[%clk 0:01:37]} 1-0


[Site "https://www.chess.com"]

[Event "Titled Tuesday Blitz September 13 Late 2022"]
[White "Semenenko, Dmytry"]
[Black "Rustemov, Alexander"]
[WhiteFideId "14118645"]
[BlackFideId "4119002"]
[WhiteElo "2113"]
[BlackElo "2865"]
[Result "0-1"]
[Round "01"]
[TimeControl "180+1"]
[Date "2022.09.13"]
[WhiteClock "0:01:53"]
[BlackClock "0:00:31"]

1. Nf3 {[%clk 0:02:59]}  d5 {[%clk 0:02:59]} 2. c4 {[%clk 0:03:00]}  c6 {[%clk 0:02:58]} 3. e3 {[%clk 0:03:00]}  Nf6 {[%clk 0:02:58]} 4. Nc3 {[%clk 0:03:00]}  a6 {[%clk 0:02:59]} 5. cxd5 {[%clk 0:03:00]}  cxd5 {[%clk 0:02:59]} 6. d4 {[%clk 0:03:01]}  Bf5 {[%clk 0:02:56]} 7. Bd3 {[%clk 0:03:01]}  Bxd3 {[%clk 0:02:56]} 8. Qxd3 {[%clk 0:03:01]}  e6 {[%clk 0:02:56]} 9. O-O {[%clk 0:03:01]}  Nc6 {[%clk 0:02:57]} 10. e4 {[%clk 0:02:59]}  dxe4 {[%clk 0:02:54]} 11. Nxe4 {[%clk 0:03:00]}  Be7 {[%clk 0:02:55]} 12. Be3 {[%clk 0:02:54]}  O-O {[%clk 0:02:54]} 13. Rac1 {[%clk 0:02:54]}  Rc8 {[%clk 0:02:47]} 14. Rfd1 {[%clk 0:02:54]}  Qd7 {[%clk 0:02:06]} 15. Nc5 {[%clk 0:02:46]}  Bxc5 {[%clk 0:02:00]} 16. dxc5 {[%clk 0:02:46]}  Qxd3 {[%clk 0:01:59]} 17. Rxd3 {[%clk 0:02:47]}  Rfd8 {[%clk 0:01:58]} 18. Rcd1 {[%clk 0:02:43]}  Rxd3 {[%clk 0:01:55]} 19. Rxd3 {[%clk 0:02:43]}  Nd5 {[%clk 0:01:54]} 20. a3 {[%clk 0:02:43]}  f6 {[%clk 0:01:53]} 21. b4 {[%clk 0:02:42]}  Kf7 {[%clk 0:01:53]} 22. Nd4 {[%clk 0:02:40]}  Nxd4 {[%clk 0:01:41]} 23. Bxd4 {[%clk 0:02:40]}  Nf4 {[%clk 0:01:29]} 24. Rd2 {[%clk 0:02:39]}  Rd8 {[%clk 0:01:18]} 25. Bc3 {[%clk 0:02:39]}  Nd5 {[%clk 0:01:14]} 26. Bb2 {[%clk 0:02:37]}  e5 {[%clk 0:01:14]} 27. f3 {[%clk 0:02:34]}  Ke6 {[%clk 0:01:14]} 28. Kf2 {[%clk 0:02:34]}  Rd7 {[%clk 0:01:13]} 29. g3 {[%clk 0:02:34]}  h5 {[%clk 0:01:12]} 30. Ke2 {[%clk 0:02:29]}  g5 {[%clk 0:01:12]} 31. Ba1 {[%clk 0:02:27]}  g4 {[%clk 0:01:11]} 32. Kf2 {[%clk 0:02:22]}  Rc7 {[%clk 0:01:03]} 33. Rd3 {[%clk 0:02:16]}  b6 {[%clk 0:01:02]} 34. cxb6 {[%clk 0:02:13]}  Rc2+ {[%clk 0:01:01]} 35. Ke1 {[%clk 0:02:10]}  Nxb6 {[%clk 0:00:55]} 36. fxg4 {[%clk 0:02:07]}  Rxh2 {[%clk 0:00:49]} 37. Bc3 {[%clk 0:02:02]}  hxg4 {[%clk 0:00:47]} 38. Rd8 {[%clk 0:02:02]}  Nd5 {[%clk 0:00:44]} 39. Bd2 {[%clk 0:02:01]}  Rg2 {[%clk 0:00:43]} 40. Ra8 {[%clk 0:02:00]}  Rxg3 {[%clk 0:00:42]} 41. Rxa6+ {[%clk 0:02:01]}  Kf5 {[%clk 0:00:42]} 42. b5 {[%clk 0:02:01]}  Rg1+ {[%clk 0:00:42]} 43. Ke2 {[%clk 0:02:01]}  Rb1 {[%clk 0:00:42]} 44. a4 {[%clk 0:02:00]}  g3 {[%clk 0:00:42]} 45. Be1 {[%clk 0:01:59]}  Rb2+ {[%clk 0:00:39]} 46. Kf1 {[%clk 0:01:58]}  Ne3+ {[%clk 0:00:34]} 47. Kg1 {[%clk 0:01:59]}  Rb1 {[%clk 0:00:32]} 48. b6 {[%clk 0:01:53]}  Rxe1# {[%clk 0:00:31]} 0-1


[Site "https://www.chess.com"]

[Event "Titled Tuesday Blitz September 13 Late 2022"]
[White "Shimanov, Aleksandr"]
[Black "Shohat, Yotam"]
[WhiteFideId "4198603"]
[BlackFideId "2813955"]
[WhiteElo "2605"]
[BlackElo "2119"]
[Result "1-0"]
[Round "01"]
[TimeControl "180+1"]
[Date "2022.09.13"]
[WhiteClock "0:02:03"]
[BlackClock "0:00:01"]

1. e4 {[%clk 0:02:59]}  c5 {[%clk 0:02:57]} 2. Nf3 {[%clk 0:02:58]}  d6 {[%clk 0:02:56]} 3. d4 {[%clk 0:02:58]}  cxd4 {[%clk 0:02:57]} 4. Qxd4 {[%clk 0:02:58]}  Bd7 {[%clk 0:02:56]} 5. c4 {[%clk 0:02:56]}  Nc6 {[%clk 0:02:56]} 6. Qe3 {[%clk 0:02:56]}  Nf6 {[%clk 0:02:55]} 7. Nc3 {[%clk 0:02:56]}  Ng4 {[%clk 0:02:53]} 8. Qd2 {[%clk 0:02:54]}  g6 {[%clk 0:02:53]} 9. h3 {[%clk 0:02:54]}  Nge5 {[%clk 0:02:52]} 10. Nxe5 {[%clk 0:02:53]}  Nxe5 {[%clk 0:02:53]} 11. Be2 {[%clk 0:02:50]}  Bg7 {[%clk 0:02:52]} 12. O-O {[%clk 0:02:50]}  O-O {[%clk 0:02:52]} 13. b3 {[%clk 0:02:50]}  Nc6 {[%clk 0:02:47]} 14. Bb2 {[%clk 0:02:49]}  Nd4 {[%clk 0:02:45]} 15. Bd3 {[%clk 0:02:48]}  Bc6 {[%clk 0:02:44]} 16. Nd5 {[%clk 0:02:45]}  e5 {[%clk 0:02:44]} 17. Rae1 {[%clk 0:02:40]}  Bxd5 {[%clk 0:02:43]} 18. exd5 {[%clk 0:02:39]}  a5 {[%clk 0:01:57]} 19. f4 {[%clk 0:02:35]}  Qb6 {[%clk 0:01:56]} 20. Kh1 {[%clk 0:02:35]}  a4 {[%clk 0:01:56]} 21. b4 {[%clk 0:02:32]}  a3 {[%clk 0:01:55]} 22. Bc3 {[%clk 0:02:32]}  Rae8 {[%clk 0:01:27]} 23. fxe5 {[%clk 0:02:28]}  Rxe5 {[%clk 0:01:15]} 24. Rxe5 {[%clk 0:02:25]}  Bxe5 {[%clk 0:01:13]} 25. Qf2 {[%clk 0:02:22]}  Bg7 {[%clk 0:00:35]} 26. Rd1 {[%clk 0:02:19]}  Re8 {[%clk 0:00:31]} 27. Bf1 {[%clk 0:02:19]}  Re4 {[%clk 0:00:31]} 28. g3 {[%clk 0:02:07]}  f5 {[%clk 0:00:03]} 29. Rd2 {[%clk 0:02:05]}  Qc7 {[%clk 0:00:02]} 30. Bxd4 {[%clk 0:02:05]}  Bxd4 {[%clk 0:00:01]} 31. Rxd4 {[%clk 0:02:05]}  Qb6 {[%clk 0:00:02]} 32. Rd2 {[%clk 0:02:05]}  Qxb4 {[%clk 0:00:01]} 33. Kg2 {[%clk 0:02:03]}  Rxc4 {[%clk 0:00:01]} 34. Bxc4 {[%clk 0:02:03]}  Qxc4 {[%clk 0:00:01]} 35. Qe3 {[%clk 0:02:03]} 1-0


[Site "https://www.chess.com"]

[Event "Titled Tuesday Blitz September 13 Late 2022"]
[White "Taboas Rodriguez, Daniel"]
[Black "Ivic, Velimir"]
[WhiteFideId "2208466"]
[BlackFideId "950122"]
[WhiteElo "2429"]
[BlackElo "2625"]
[Result "0-1"]
[Round "01"]
[TimeControl "180+1"]
[Date "2022.09.13"]
[WhiteClock "0:00:07"]
[BlackClock "0:00:27"]

1. d4 {[%clk 0:02:58]}  Nf6 {[%clk 0:02:58]} 2. Nf3 {[%clk 0:02:59]}  g6 {[%clk 0:02:58]} 3. c4 {[%clk 0:02:59]}  Bg7 {[%clk 0:02:59]} 4. Nc3 {[%clk 0:03:00]}  d5 {[%clk 0:02:58]} 5. cxd5 {[%clk 0:03:01]}  Nxd5 {[%clk 0:02:59]} 6. e4 {[%clk 0:03:02]}  Nxc3 {[%clk 0:02:59]} 7. bxc3 {[%clk 0:03:03]}  c5 {[%clk 0:02:58]} 8. Be3 {[%clk 0:03:03]}  O-O {[%clk 0:02:53]} 9. Be2 {[%clk 0:03:03]}  Qa5 {[%clk 0:02:53]} 10. O-O {[%clk 0:03:02]}  Rd8 {[%clk 0:02:52]} 11. Qb3 {[%clk 0:03:02]}  cxd4 {[%clk 0:02:46]} 12. cxd4 {[%clk 0:03:02]}  Nc6 {[%clk 0:02:47]} 13. Rad1 {[%clk 0:03:02]}  Bg4 {[%clk 0:02:46]} 14. d5 {[%clk 0:03:01]}  Bxf3 {[%clk 0:02:44]} 15. gxf3 {[%clk 0:02:54]}  Ne5 {[%clk 0:02:45]} 16. f4 {[%clk 0:02:54]}  Nd7 {[%clk 0:02:43]} 17. e5 {[%clk 0:02:48]}  Nb6 {[%clk 0:02:41]} 18. Bf3 {[%clk 0:02:36]}  Rac8 {[%clk 0:02:40]} 19. d6 {[%clk 0:02:35]}  exd6 {[%clk 0:02:40]} 20. Rxd6 {[%clk 0:02:34]}  Rxd6 {[%clk 0:02:20]} 21. exd6 {[%clk 0:02:35]}  Rc3 {[%clk 0:02:21]} 22. Bxb6 {[%clk 0:01:54]}  axb6 {[%clk 0:02:21]} 23. Qd1 {[%clk 0:01:54]}  Bf6 {[%clk 0:02:11]} 24. d7 {[%clk 0:01:54]}  b5 {[%clk 0:02:07]} 25. Re1 {[%clk 0:01:51]}  Kg7 {[%clk 0:02:06]} 26. Re8 {[%clk 0:01:46]}  Qc7 {[%clk 0:01:51]} 27. Kg2 {[%clk 0:01:09]}  Qxf4 {[%clk 0:01:47]} 28. Re4 {[%clk 0:00:39]}  Qf5 {[%clk 0:01:32]} 29. Re3 {[%clk 0:00:31]}  Qg5+ {[%clk 0:01:27]} 30. Kf1 {[%clk 0:00:28]}  Rxe3 {[%clk 0:01:25]} 31. fxe3 {[%clk 0:00:29]}  Qxe3 {[%clk 0:01:24]} 32. Qe2 {[%clk 0:00:20]}  Qf4 {[%clk 0:01:13]} 33. Kg2 {[%clk 0:00:20]}  h5 {[%clk 0:01:11]} 34. Qxb5 {[%clk 0:00:18]}  Qd2+ {[%clk 0:01:08]} 35. Be2 {[%clk 0:00:16]}  h4 {[%clk 0:00:59]} 36. Qd3 {[%clk 0:00:16]}  Qxa2 {[%clk 0:00:54]} 37. Kf3 {[%clk 0:00:14]}  Qa5 {[%clk 0:00:50]} 38. h3 {[%clk 0:00:11]}  Qg5 {[%clk 0:00:48]} 39. Qd6 {[%clk 0:00:11]}  b5 {[%clk 0:00:44]} 40. Kf2 {[%clk 0:00:07]}  Qf5+ {[%clk 0:00:30]} 41. Ke1 {[%clk 0:00:07]}  Bc3+ {[%clk 0:00:27]} 42. Kd1 {[%clk 0:00:07]}  Qb1# {[%clk 0:00:27]} 0-1


[Site "https://www.chess.com"]

[Event "Titled Tuesday Blitz September 13 Late 2022"]
[White "Ter-Sahakyan, Samvel"]
[Black "Lopez Gracia, Fernando"]
[WhiteFideId "13302531"]
[BlackFideId "2207184"]
[WhiteElo "2604"]
[BlackElo "2497"]
[Result "1-0"]
[Round "01"]
[TimeControl "180+1"]
[Date "2022.09.13"]
[WhiteClock "0:00:23"]
[BlackClock "0:00:05"]

1. e4 {[%clk 0:02:59]}  e5 {[%clk 0:02:57]} 2. Nf3 {[%clk 0:02:58]}  Nc6 {[%clk 0:02:55]} 3. Bb5 {[%clk 0:02:57]}  a6 {[%clk 0:02:55]} 4. Ba4 {[%clk 0:02:57]}  Nf6 {[%clk 0:02:55]} 5. O-O {[%clk 0:02:57]}  Bc5 {[%clk 0:02:56]} 6. c3 {[%clk 0:02:55]}  b5 {[%clk 0:02:56]} 7. Bb3 {[%clk 0:02:51]}  d6 {[%clk 0:02:57]} 8. a4 {[%clk 0:02:46]}  Bg4 {[%clk 0:02:56]} 9. d3 {[%clk 0:02:42]}  h6 {[%clk 0:02:47]} 10. Nbd2 {[%clk 0:02:41]}  O-O {[%clk 0:02:45]} 11. h3 {[%clk 0:02:39]}  Be6 {[%clk 0:02:39]} 12. Bc2 {[%clk 0:02:21]}  Rb8 {[%clk 0:02:29]} 13. b4 {[%clk 0:02:19]}  Bb6 {[%clk 0:02:25]} 14. Re1 {[%clk 0:02:12]}  Re8 {[%clk 0:02:24]} 15. Nb3 {[%clk 0:01:52]}  d5 {[%clk 0:02:11]} 16. a5 {[%clk 0:01:52]}  Ba7 {[%clk 0:02:02]} 17. Be3 {[%clk 0:01:52]}  Bxe3 {[%clk 0:01:53]} 18. fxe3 {[%clk 0:01:44]}  dxe4 {[%clk 0:01:51]} 19. dxe4 {[%clk 0:01:44]}  Bxb3 {[%clk 0:01:39]} 20. Bxb3 {[%clk 0:01:43]}  Nxe4 {[%clk 0:01:40]} 21. Qd5 {[%clk 0:01:28]}  Qxd5 {[%clk 0:01:12]} 22. Bxd5 {[%clk 0:01:27]}  Nxc3 {[%clk 0:01:13]} 23. Bxc6 {[%clk 0:01:23]}  Re6 {[%clk 0:01:12]} 24. Bd7 {[%clk 0:01:18]}  Rd6 {[%clk 0:01:12]} 25. Bg4 {[%clk 0:01:13]}  h5 {[%clk 0:00:56]} 26. Bf5 {[%clk 0:00:54]}  e4 {[%clk 0:00:51]} 27. Ng5 {[%clk 0:00:46]}  Re8 {[%clk 0:00:19]} 28. Rac1 {[%clk 0:00:41]}  Rd5 {[%clk 0:00:20]} 29. Rxc3 {[%clk 0:00:34]}  Rxf5 {[%clk 0:00:19]} 30. h4 {[%clk 0:00:34]}  f6 {[%clk 0:00:07]} 31. Nh3 {[%clk 0:00:34]}  g5 {[%clk 0:00:08]} 32. Rxc7 {[%clk 0:00:30]}  Rd8 {[%clk 0:00:08]} 33. Rf1 {[%clk 0:00:26]}  Rxf1+ {[%clk 0:00:07]} 34. Kxf1 {[%clk 0:00:27]}  Rd5 {[%clk 0:00:06]} 35. Rc6 {[%clk 0:00:25]}  Kg7 {[%clk 0:00:06]} 36. Rxa6 {[%clk 0:00:25]}  Rd3 {[%clk 0:00:06]} 37. hxg5 {[%clk 0:00:23]}  Rxe3 {[%clk 0:00:05]} 38. gxf6+ {[%clk 0:00:23]} 1-0


[Site "https://www.chess.com"]

[Event "Titled Tuesday Blitz September 13 Late 2022"]
[White "Vasquez Schroeder, Rodrigo"]
[Black "Meduri, Aakaash"]
[WhiteFideId "3400042"]
[BlackFideId "2032252"]
[WhiteElo "2577"]
[BlackElo "2113"]
[Result "1-0"]
[Round "01"]
[TimeControl "180+1"]
[Date "2022.09.13"]
[WhiteClock "0:01:12"]
[BlackClock "0:00:18"]

1. e4 {[%clk 0:02:58]}  c5 {[%clk 0:02:57]} 2. Nf3 {[%clk 0:02:58]}  d6 {[%clk 0:02:58]} 3. d4 {[%clk 0:02:52]}  cxd4 {[%clk 0:02:59]} 4. Nxd4 {[%clk 0:02:52]}  Nf6 {[%clk 0:02:59]} 5. Nc3 {[%clk 0:02:52]}  g6 {[%clk 0:02:59]} 6. g3 {[%clk 0:02:44]}  Bg7 {[%clk 0:02:59]} 7. Bg2 {[%clk 0:02:45]}  O-O {[%clk 0:02:59]} 8. O-O {[%clk 0:02:44]}  Nbd7 {[%clk 0:02:52]} 9. a4 {[%clk 0:02:43]}  Nc5 {[%clk 0:02:46]} 10. h3 {[%clk 0:02:29]}  Ne6 {[%clk 0:02:40]} 11. Nb3 {[%clk 0:02:26]}  Rb8 {[%clk 0:02:39]} 12. Be3 {[%clk 0:02:25]}  b6 {[%clk 0:02:38]} 13. Re1 {[%clk 0:02:23]}  Bb7 {[%clk 0:02:36]} 14. Qd2 {[%clk 0:02:23]}  Re8 {[%clk 0:02:31]} 15. Bh6 {[%clk 0:02:22]}  Bh8 {[%clk 0:02:31]} 16. Rad1 {[%clk 0:02:21]}  Nc5 {[%clk 0:02:26]} 17. Nd4 {[%clk 0:02:19]}  a6 {[%clk 0:02:21]} 18. b3 {[%clk 0:02:14]}  Qc7 {[%clk 0:02:08]} 19. Nd5 {[%clk 0:02:13]}  Nxd5 {[%clk 0:01:47]} 20. exd5 {[%clk 0:02:14]}  Nd7 {[%clk 0:01:46]} 21. c4 {[%clk 0:02:13]}  Nf6 {[%clk 0:01:40]} 22. Re2 {[%clk 0:02:08]}  Rbd8 {[%clk 0:01:29]} 23. Rde1 {[%clk 0:02:06]}  Rd7 {[%clk 0:01:29]} 24. Kh2 {[%clk 0:02:00]}  Ba8 {[%clk 0:01:13]} 25. g4 {[%clk 0:01:48]}  Qc5 {[%clk 0:01:05]} 26. Nf5 {[%clk 0:01:40]}  e5 {[%clk 0:00:21]} 27. dxe6 {[%clk 0:01:33]}  fxe6 {[%clk 0:00:21]} 28. Bxa8 {[%clk 0:01:27]}  Rxa8 {[%clk 0:00:21]} 29. Rxe6 {[%clk 0:01:19]}  gxf5 {[%clk 0:00:21]} 30. Qg5+ {[%clk 0:01:17]}  Kf7 {[%clk 0:00:21]} 31. Rxf6+ {[%clk 0:01:12]}  Bxf6 {[%clk 0:00:17]} 32. Qh5+ {[%clk 0:01:13]}  Kg8 {[%clk 0:00:17]} 33. Re8+ {[%clk 0:01:13]}  Rxe8 {[%clk 0:00:18]} 34. Qxe8# {[%clk 0:01:12]} 1-0


[Site "https://www.chess.com"]